fUSD/lending_fUSD_20240907
["ID","MTS","AMOUNT","RATE_DAILY","PERIOD"]
[337468386,1725677495190,-500.0,0.00014998,2]
[337468387,1725677495200,-422.02788764,0.00014998,2]
[337468388,1725677495211,-500.0,0.00014998,2]
[337468389,1725677495222,-500.0,0.00014998,2]
[337468390,1725677495231,-582.54,0.00014998,2]
[337468391,1725677495243,-458.44602175,0.00014998,2]
[337468392,1725677495253,-582.54,0.00014998,2]
[337468393,1725677495263,-582.54,0.00014998,2]
[337468394,1725677495272,-582.54,0.00014998,2]
[337468395,1725677495281,-500.0,0.00014998,2]
[337468396,1725677495291,-514.24999999,0.00014998,2]
[337468397,1725677495302,-500.0,0.00014998,2]
[337468398,1725677495312,-500.0,0.00014998,2]
[337468399,1725677495322,-273.27438847,0.00014998,2]
[337468400,1725677495333,-876.75,0.00014998,2]
[337468401,1725677495344,-876.75,0.00014998,2]
[337468402,1725677495354,-876.75,0.00014998,2]
[337468403,1725677495364,-1106.53,0.00014998,2]
[337468404,1725677495374,-1106.53,0.00014998,2]
[337468405,1725677495383,-1106.53,0.00014998,2]
[337468406,1725677495394,-517.99,0.00014998,2]
[337468407,1725677495404,-517.99,0.00014998,2]
[337468408,1725677495417,-517.99,0.00014998,2]
[337468409,1725677495426,-517.99,0.00014998,2]
[337468410,1725677495437,-517.99,0.00014998,2]
[337468411,1725677495447,-517.99,0.00014998,2]
[337468412,1725677495461,-161.6045317,0.00014998,2]
[337468413,1725677495471,-518.03535147,0.00014998,2]
[337468414,1725677495481,-500.0,0.00014998,2]
[337468415,1725677495492,-537.83,0.00014998,2]
[337468416,1725677495502,-500.0,0.00014998,2]
[337468417,1725677495512,-243.21540172,0.00014998,2]
[337468418,1725677495522,-537.83,0.00014998,2]
[337468419,1725677495532,-537.83,0.00014998,2]
[337468420,1725677495544,-151.0,0.00014998,2]
[337468421,1725677495553,-151.0,0.00014998,2]
[337468422,1725677495563,-608.98,0.00014998,2]
[337468423,1725677495573,-608.98,0.00014998,2]
[337468424,1725677495582,-608.98,0.00014998,2]
[337468425,1725677495591,-608.98,0.00014998,2]
[337468426,1725677495601,-608.98,0.00014998,2]
[337468427,1725677495611,-608.98,0.00014998,2]
[337468428,1725677495620,-609.07976234,0.00014998,2]
[337468429,1725677495630,-151.0,0.00014998,2]
[337468430,1725677495639,-151.0,0.00014998,2]
[337468431,1725677495649,-948.01,0.00014998,2]
[337468432,1725677495658,-948.01,0.00014998,2]
[337468433,1725677495667,-948.01,0.00014998,2]
[337468434,1725677495677,-585.97,0.00014998,2]
[337468435,1725677495686,-500.0,0.00014998,2]
[337468436,1725677495697,-585.97,0.00014998,2]
[337468437,1725677495706,-500.0,0.00014998,2]
[337468438,1725677495716,-585.97,0.00014998,2]
[337468439,1725677495726,-500.0,0.00014998,2]
[337468440,1725677495736,-585.97,0.00014998,2]
[337468441,1725677495746,-1030.8,0.00014998,2]
[337468442,1725677495756,-1030.8,0.00014998,2]
[337468443,1725677495765,-1030.8,0.00014998,2]
[337468444,1725677495775,-1030.8,0.00014998,2]
[337468445,1725677495785,-1030.8,0.00014998,2]
[337468446,1725677495795,-1030.8,0.00014998,2]
[337468447,1725677495805,-1030.82338116,0.00014998,2]
[337468448,1725677495814,-500.0,0.00014998,2]
[337468449,1725677495823,-500.0,0.00014998,2]
[337468450,1725677495833,-500.0,0.00014998,2]
[337468451,1725677495842,-559.93323333,0.00014998,2]
[337468452,1725677495852,-830.02,0.00014998,2]
[337468453,1725677495861,-830.02,0.00014998,2]
[337468454,1725677495870,-830.02,0.00014998,2]
[337468455,1725677495879,-830.02,0.00014998,2]
[337468456,1725677495889,-830.02,0.00014998,2]
[337468457,1725677495898,-830.02,0.00014998,2]
[337468458,1725677495907,-830.07,0.00014998,2]
[337468459,1725677495916,-500.0,0.00014998,2]
[337468460,1725677495926,-500.0,0.00014998,2]
[337468461,1725677495935,-500.0,0.00014998,2]
[337468462,1725677495945,-500.0,0.00014998,2]
[337468463,1725677495954,-500.0,0.00014998,2]
[337468464,1725677495963,-500.0,0.00014998,2]
[337468465,1725677495973,-304.28459111,0.00014998,2]
[337468466,1725677495983,-687.57,0.00014998,2]
[337468467,1725677495993,-687.57,0.00014998,2]
[337468468,1725677496003,-2437.6,0.00014998,2]
[337468469,1725677496012,-687.57,0.00014998,2]
[337468470,1725677496021,-2437.6,0.00014998,2]
[337468471,1725677496031,-687.57,0.00014998,2]
[337468472,1725677496041,-2437.6,0.00014998,2]
[337468473,1725677496051,-687.57,0.00014998,2]
[337468474,1725677496060,-720.08,0.00014998,2]
[337468475,1725677496069,-720.08,0.00014998,2]
[337468476,1725677496079,-720.08,0.00014998,2]
[337468477,1725677496088,-542.27,0.00014998,2]
[337468478,1725677496098,-542.27,0.00014998,2]
[337468479,1725677496107,-500.0,0.00014998,2]
[337468480,1725677496116,-542.27,0.00014998,2]
[337468481,1725677496126,-433.6,0.00014998,2]
[337468482,1725677496135,-535.96,0.00014998,2]
[337468483,1725677496145,-535.96,0.00014998,2]
[337468484,1725677496154,-535.96,0.00014998,2]
[337468485,1725677496163,-535.96,0.00014998,2]
[337468486,1725677496172,-535.96,0.00014998,2]
[337468487,1725677496182,-2595.16,0.00014998,2]
[337468488,1725677496192,-2595.16,0.00014998,2]
[337468489,1725677496202,-2595.16,0.00014998,2]
[337468490,1725677496211,-151.0,0.00014998,2]
[337468491,1725677496221,-541.7,0.00014998,2]
[337468492,1725677496231,-151.0,0.00014998,2]
[337468493,1725677496240,-866.39,0.00014998,2]
[337468494,1725677496250,-866.39,0.00014998,2]
[337468495,1725677496259,-866.39,0.00014998,2]
[337468496,1725677496269,-866.39,0.00014998,2]
[337468497,1725677496278,-866.39,0.00014998,2]
[337468498,1725677496288,-866.39,0.00014998,2]
[337468499,1725677496297,-624.27,0.00014998,2]
[337468500,1725677496307,-866.4,0.00014998,2]
[337468501,1725677496317,-624.27,0.00014998,2]
[337468502,1725677496572,-500.0,0.00014998,2]
[337468503,1725677496582,-624.27,0.00014998,2]
[337468504,1725677496592,-500.0,0.00014998,2]
[337468505,1725677496602,-624.27,0.00014998,2]
[337468506,1725677496612,-705.76,0.00014998,2]
[337468507,1725677496622,-500.0,0.00014998,2]
[337468508,1725677496631,-624.27,0.00014998,2]
[337468509,1725677496641,-705.76,0.00014998,2]
[337468510,1725677496651,-500.0,0.00014998,2]
[337468511,1725677496660,-500.0,0.00014998,2]
[337468512,1725677496669,-705.76,0.00014998,2]
[337468513,1725677496679,-705.76,0.00014998,2]
[337468514,1725677496688,-705.76,0.00014998,2]
[337468515,1725677496698,-3199.88,0.00014998,2]
[337468516,1725677496708,-3199.88,0.00014998,2]
[337468517,1725677496717,-3199.88,0.00014998,2]
[337468518,1725677496727,-500.0,0.00014998,2]
[337468519,1725677496736,-500.0,0.00014998,2]
[337468520,1725677496746,-500.0,0.00014998,2]
[337468521,1725677496755,-500.0,0.00014998,2]
[337468522,1725677496765,-500.0,0.00014998,2]
[337468523,1725677496774,-766.45,0.00014998,2]
[337468524,1725677496784,-766.45,0.00014998,2]
[337468525,1725677496794,-766.45,0.00014998,2]
[337468526,1725677496804,-500.0,0.00014998,2]
[337468527,1725677496813,-500.0,0.00014998,2]
[337468528,1725677496822,-279.64387987,0.00014998,2]
[337468529,1725677496832,-500.0,0.00014998,2]
[337468530,1725677496842,-500.0,0.00014998,2]
[337468531,1725677496851,-241.15,0.00014998,2]
[337468532,1725677496860,-500.0,0.00014998,2]
[337468533,1725677496869,-497.66025016,0.00014998,2]
[337468534,1725677496879,-617.69,0.00014998,2]
[337468535,1725677496888,-617.69,0.00014998,2]
[337468536,1725677496898,-617.69,0.00014998,2]
[337468537,1725677496907,-512.13,0.00014998,2]
[337468538,1725677496917,-512.13,0.00014998,2]
[337468539,1725677496926,-512.13,0.00014998,2]
[337468540,1725677496935,-512.13,0.00014998,2]
[337468541,1725677496944,-500.0,0.00014998,2]
[337468542,1725677496953,-593.78,0.00014998,2]
[337468543,1725677496963,-512.13,0.00014998,2]
[337468544,1725677496972,-500.0,0.00014998,2]
[337468545,1725677496981,-593.78,0.00014998,2]
[337468546,1725677496991,-500.0,0.00014998,2]
[337468547,1725677497000,-593.78,0.00014998,2]
[337468548,1725677497010,-406.45,0.00014998,2]
[337468549,1725677497019,-593.78,0.00014998,2]
[337468550,1725677497028,-593.78,0.00014998,2]
[337468551,1725677497038,-593.78,0.00014998,2]
[337468552,1725677497047,-593.78,0.00014998,2]
[337468553,1725677497056,-500.0,0.00014998,2]
[337468554,1725677497067,-500.0,0.00014998,2]
[337468555,1725677497076,-368.80232756,0.00014998,2]
[337468556,1725677497085,-593.78,0.00014998,2]
[337468557,1725677497094,-500.0,0.00014998,2]
[337468558,1725677497104,-593.86577411,0.00014998,2]
[337468559,1725677497113,-500.0,0.00014998,2]
[337468560,1725677497122,-500.0,0.00014998,2]
[337468561,1725677497132,-500.0,0.00014998,2]
[337468562,1725677497141,-500.0,0.00014998,2]
[337468563,1725677497151,-500.0,0.00014998,2]
[337468564,1725677497160,-2016.4,0.00014998,2]
[337468565,1725677497170,-2016.4,0.00014998,2]
[337468566,1725677497180,-591.5,0.00014998,2]
[337468567,1725677497189,-2016.4,0.00014998,2]
[337468568,1725677497198,-2016.4,0.00014998,2]
[337468569,1725677497207,-2016.4,0.00014998,2]
[337468570,1725677497217,-500.0,0.00014998,2]
[337468571,1725677497226,-2016.4,0.00014998,2]
[337468572,1725677497236,-500.0,0.00014998,2]
[337468573,1725677497245,-2016.4,0.00014998,2]
[337468574,1725677497258,-500.0,0.00014998,2]
[337468575,1725677497268,-2016.4,0.00014998,2]
[337468576,1725677497278,-631.9450321,0.00014998,2]
[337468577,1725677497289,-2016.42728215,0.00014998,2]
[337468578,1725677497300,-827.88,0.00014998,2]
[337468579,1725677497310,-500.0,0.00014998,2]
[337468580,1725677497320,-827.88,0.00014998,2]
[337468581,1725677497330,-500.0,0.00014998,2]
[337468582,1725677497340,-827.88,0.00014998,2]
[337468583,1725677497349,-500.0,0.00014998,2]
[337468584,1725677497359,-500.0,0.00014998,2]
[337468585,1725677497369,-500.0,0.00014998,2]
[337468586,1725677497378,-500.0,0.00014998,2]
[337468587,1725677497388,-500.0,0.00014998,2]
[337468588,1725677497397,-390.214051,0.00014998,2]
[337468589,1725677497410,-1573.01,0.00014998,2]
[337468590,1725677497421,-1573.01,0.00014998,2]
[337468591,1725677497432,-1573.01,0.00014998,2]
[337468592,1725677497444,-1573.01,0.00014998,2]
[337468593,1725677497455,-1573.01,0.00014998,2]
[337468594,1725677497465,-1573.01,0.00014998,2]
[337468595,1725677497477,-1573.01,0.00014998,2]
[337468596,1725677497489,-500.0,0.00014998,2]
[337468597,1725677497498,-1573.01,0.00014998,2]
[337468598,1725677497509,-500.0,0.00014998,2]
[337468599,1725677497519,-1573.20236552,0.00014998,2]
[337468600,1725677497530,-500.0,0.00014998,2]
[337468601,1725677497541,-500.0,0.00014998,2]
[337468602,1725677497550,-500.0,0.00014998,2]
[337468603,1725677497560,-500.0,0.00014998,2]
[337468604,1725677497569,-500.0,0.00014998,2]
[337468605,1725677497579,-500.0,0.00014998,2]
[337468606,1725677497589,-500.0,0.00014998,2]
[337468607,1725677497599,-287.18506272,0.00014998,2]
[337468608,1725677497610,-552.09,0.00014998,2]
[337468609,1725677497620,-552.09,0.00014998,2]
[337468610,1725677497630,-552.09,0.00014998,2]
[337468611,1725677497640,-552.09,0.00014998,2]
[337468612,1725677497650,-500.0,0.00014998,2]
[337468613,1725677497661,-500.0,0.00014998,2]
[337468614,1725677497670,-500.0,0.00014998,2]
[337468615,1725677497682,-500.0,0.00014998,2]
[337468616,1725677497693,-512.83,0.00014998,2]
[337468617,1725677497703,-512.83,0.00014998,2]
[337468618,1725677497713,-500.0,0.00014998,2]
[337468619,1725677497724,-512.83,0.00014998,2]
[337468620,1725677497737,-313.098597,0.00014998,2]
[337468621,1725677497747,-500.0,0.00014998,2]
[337468622,1725677497758,-500.0,0.00014998,2]
[337468623,1725677497769,-313.098597,0.00014998,2]
[337468624,1725677497780,-500.0,0.00014998,2]
[337468625,1725677497790,-500.0,0.00014998,2]
[337468626,1725677497800,-500.0,0.00014998,2]
[337468627,1725677497809,-313.098597,0.00014998,2]
[337468628,1725677497818,-313.098597,0.00014998,2]
[337468629,1725677497828,-500.0,0.00014998,2]
[337468630,1725677497837,-500.0,0.00014998,2]
[337468631,1725677497846,-63396.02619424,0.00014999,2]
[337468632,1725677498087,-385.66261705,0.00014999,2]
[337468633,1725677498099,-517.05379565,0.00014999,2]
[337468634,1725677498122,-552.19,0.00014997,2]
[337468635,1725677498132,-500.0,0.00014998,2]
[337468636,1725677498141,-4176.29614854,0.00014999,2]
[337468637,1725677498152,-1263.75135536,0.00014999,2]
[337468638,1725677498372,-500.0,0.00014794,2]
[337468639,1725677498382,-500.0,0.00014794,2]
[337468640,1725677498392,-500.0,0.00014794,2]
[337468641,1725677498404,-500.0,0.00014794,2]
[337468642,1725677498416,-500.0,0.00014794,2]
[337468643,1725677498426,-500.0,0.00014794,2]
[337468644,1725677498437,-87.7847,0.00014794,2]
[337468645,1725677499162,1024.0,0.00031422,30]
[337468646,1725677499210,-412.2153,0.00014794,2]
[337468647,1725677499219,-500.0,0.00014794,2]
[337468648,1725677499228,-500.0,0.00014794,2]
[337468649,1725677499238,-500.0,0.00014794,2]
[337468650,1725677499247,-500.0,0.00014794,2]
[337468651,1725677499256,-503.34307365,0.00014794,2]
[337468652,1725677499265,-500.0,0.00014794,2]
[337468653,1725677499275,-500.0,0.00014794,2]
[337468654,1725677499284,-349.05,0.00014794,2]
[337468655,1725677499293,-500.0,0.00014794,2]
[337468656,1725677499303,-500.0,0.00014794,2]
[337468657,1725677499312,-500.0,0.00014794,2]
[337468658,1725677499321,-151.0,0.00014794,2]
[337468659,1725677499330,-500.0,0.00014794,2]
[337468660,1725677499339,-151.0,0.00014794,2]
[337468661,1725677499349,-565.81,0.00014794,2]
[337468662,1725677499359,-565.81,0.00014794,2]
[337468663,1725677499368,-565.81,0.00014794,2]
[337468664,1725677499377,-598.12978133,0.00014794,2]
[337468665,1725677499387,-565.81,0.00014794,2]
[337468666,1725677499396,-500.0,0.00014796,2]
[337468667,1725677499406,-205.99540944,0.00014797,2]
[337468668,1725677499418,-151.0,0.0001484,2]
[337468669,1725677499427,-500.0,0.00014986,2]
[337468670,1725677499436,-500.0,0.00014989,2]
[337468671,1725677499446,-151.0,0.00014995,2]
[337468672,1725677499455,-500.0,0.00014996,2]
[337468673,1725677499465,-500.0,0.00014997,2]
[337468674,1725677499474,-606.93,0.00014998,2]
[337468675,1725677499485,-552.19,0.00014998,2]
[337468676,1725677499494,-254.98367123,0.00014998,2]
[337468677,1725677499503,-552.19,0.00014998,2]
[337468678,1725677499513,-552.19,0.00014998,2]
[337468679,1725677499523,-552.19,0.00014998,2]
[337468680,1725677499532,-552.19,0.00014998,2]
[337468681,1725677499541,-30407.9138548,0.00014999,2]
[337468682,1725677499551,-151.0,0.00014999,2]
[337468683,1725677499560,-151.0,0.00014999,2]
[337468684,1725677499569,-235.690462,0.00014999,2]
[337468685,1725677499578,-180.674951,0.00014999,2]
[337468686,1725677499587,-180.674951,0.00014999,2]
[337468687,1725677499596,-180.674951,0.00014999,2]
[337468688,1725677499605,-180.674951,0.00014999,2]
[337468689,1725677499615,-151.0,0.00014999,2]
[337468690,1725677499624,-151.0,0.00014999,2]
[337468691,1725677499633,-151.0,0.00014999,2]
[337468692,1725677499643,-151.0,0.00014999,2]
[337468693,1725677499652,-151.0,0.00014999,2]
[337468694,1725677499661,-151.0,0.00014999,2]
[337468695,1725677499671,-151.0,0.00014999,2]
[337468696,1725677499681,-151.0,0.00014999,2]
[337468697,1725677499689,-151.0,0.00014999,2]
[337468698,1725677499700,-151.0,0.00014999,2]
[337468699,1725677499709,-151.0,0.00014999,2]
[337468700,1725677499720,-151.0,0.00014999,2]
[337468701,1725677499730,-151.0,0.00014999,2]
[337468702,1725677499741,-151.0,0.00014999,2]
[337468703,1725677499750,-331.023624,0.00014999,2]
[337468704,1725677499759,-331.023624,0.00014999,2]
[337468705,1725677499769,-331.023624,0.00014999,2]
[337468706,1725677499778,-331.023624,0.00014999,2]
[337468707,1725677499789,-151.0,0.00014999,2]
[337468708,1725677499798,-273.281608,0.00014999,2]
[337468709,1725677499808,-1051.14,0.00014999,2]
[337468710,1725677499817,-1051.14,0.00014999,2]
[337468711,1725677499827,-1051.14,0.00014999,2]
[337468712,1725677499838,-1051.14,0.00014999,2]
[337468713,1725677499847,-1051.16226714,0.00014999,2]
[337468714,1725677499859,-500.0,0.00014999,2]
[337468715,1725677499869,-375.12513435,0.00014999,2]
[337468716,1725677499878,-151.0,0.00014999,2]
[337468717,1725677499888,-151.0,0.00014999,2]
[337468718,1725677499897,-500.0,0.00014999,2]
[337468719,1725677499906,-648.02296983,0.00014999,2]
[337468720,1725677499915,-151.0,0.00014999,2]
[337468721,1725677499924,-151.0,0.00014999,2]
[337468722,1725677499934,-151.0,0.00014999,2]
[337468723,1725677499943,-151.0,0.00014999,2]
[337468724,1725677499954,-151.0,0.00014999,2]
[337468725,1725677499965,-151.0,0.00014999,2]
[337468726,1725677499975,-189.0381362,0.00014999,2]
[337468727,1725677499984,-151.0,0.00014999,2]
[337468728,1725677499994,-293.247966,0.00014999,2]
[337468729,1725677500004,-151.0,0.00014999,2]
[337468730,1725677500016,-151.0,0.00014999,2]
[337468731,1725677500027,-151.0,0.00014999,2]
[337468732,1725677500039,-151.0,0.00014999,2]
[337468733,1725677500049,-151.0,0.00014999,2]
[337468734,1725677500058,-151.0,0.00014999,2]
[337468735,1725677500068,-152.095096,0.00014999,2]
[337468736,1725677500077,-516.72,0.00014999,2]
[337468737,1725677500086,-516.72,0.00014999,2]
[337468738,1725677500095,-516.72,0.00014999,2]
[337468739,1725677500105,-516.72,0.00014999,2]
[337468740,1725677500115,-516.81509886,0.00014999,2]
[337468741,1725677500126,-474.977421,0.00014999,2]
[337468742,1725677500136,-474.977421,0.00014999,2]
[337468743,1725677500145,-474.977421,0.00014999,2]
[337468744,1725677500154,-474.977421,0.00014999,2]
[337468745,1725677500163,-474.977421,0.00014999,2]
[337468746,1725677500172,-474.977421,0.00014999,2]
[337468747,1725677500182,-386.698434,0.00014999,2]
[337468748,1725677500191,-386.698434,0.00014999,2]
[337468749,1725677500200,-386.698434,0.00014999,2]
[337468750,1725677500209,-386.698434,0.00014999,2]
[337468751,1725677500219,-151.0,0.00014999,2]
[337468752,1725677500228,-151.0,0.00014999,2]
[337468753,1725677500238,-151.0,0.00014999,2]
[337468754,1725677500247,-172.294288,0.00014999,2]
[337468755,1725677500256,-151.0,0.00014999,2]
[337468756,1725677500265,-151.0,0.00014999,2]
[337468757,1725677500274,-1608.63,0.00014999,2]
[337468758,1725677500283,-1608.63,0.00014999,2]
[337468759,1725677500294,-1608.63,0.00014999,2]
[337468760,1725677500303,-1608.63,0.00014999,2]
[337468761,1725677500312,-1608.7991338,0.00014999,2]
[337468762,1725677500321,-151.0,0.00014999,2]
[337468763,1725677500331,-151.0,0.00014999,2]
[337468764,1725677500340,-500.0,0.00014999,2]
[337468765,1725677500349,-500.0,0.00014999,2]
[337468766,1725677500359,-500.0,0.00014999,2]
[337468767,1725677500368,-500.0,0.00014999,2]
[337468768,1725677500377,-915.04,0.00014999,2]
[337468769,1725677500386,-500.0,0.00014999,2]
[337468770,1725677500395,-915.04,0.00014999,2]
[337468771,1725677500407,-500.0,0.00014999,2]
[337468772,1725677500418,-500.0,0.00014999,2]
[337468773,1725677500427,-1236.46,0.00014999,2]
[337468774,1725677500436,-915.04,0.00014999,2]
[337468775,1725677500445,-1236.46,0.00014999,2]
[337468776,1725677500457,-915.04,0.00014999,2]
[337468777,1725677500467,-635.42415274,0.00014999,2]
[337468778,1725677500477,-1236.46,0.00014999,2]
[337468779,1725677500487,-915.04,0.00014999,2]
[337468780,1725677500497,-1236.46,0.00014999,2]
[337468781,1725677500507,-915.04,0.00014999,2]
[337468782,1725677500516,-1236.67900307,0.00014999,2]
[337468783,1725677500525,-915.04,0.00014999,2]
[337468784,1725677500534,-915.04,0.00014999,2]
[337468785,1725677500544,-576.99,0.00014999,2]
[337468786,1725677500553,-915.04,0.00014999,2]
[337468787,1725677500561,-576.99,0.00014999,2]
[337468788,1725677500570,-915.04,0.00014999,2]
[337468789,1725677500579,-576.99,0.00014999,2]
[337468790,1725677500588,-915.2766774,0.00014999,2]
[337468791,1725677500597,-576.99,0.00014999,2]
[337468792,1725677500606,-577.01962899,0.00014999,2]
[337468793,1725677500615,-151.0,0.00014999,2]
[337468794,1725677500624,-151.0,0.00014999,2]
[337468795,1725677500633,-151.0,0.00014999,2]
[337468796,1725677500642,-151.0,0.00014999,2]
[337468797,1725677500652,-500.0,0.00014999,2]
[337468798,1725677500661,-41.21909415,0.00014999,2]
[337468799,1725677503930,1024.8,0.00031422,30]
[337468800,1725677515216,150.0,0.00010959,2]
[337468801,1725677515237,70.16,0.00010959,2]
[337468802,1725677650748,-210.78510507,0.000123,2]
[337468803,1725677852544,2000.0,0.00031432,30]
[337468804,1725677874411,2002.75,0.00031432,30]
[337468805,1725677902557,547.45,0.00011975,2]
[337468806,1725677963288,1024.2,0.00031432,30]
[337468807,1725678198794,-582.72,0.000129,2]
[337468808,1725678198817,-292.34430382,0.000129,2]
[337468809,1725678219114,7169.42,0.00031414,30]
[337468811,1725678355710,150.0,0.00011,2]
[337468812,1725678355732,150.0,0.00011,2]
[337468813,1725678355757,150.0,0.00011,2]
[337468814,1725678355778,150.0,0.00011,2]
[337468815,1725678355803,150.0,0.00011,2]
[337468816,1725678374431,1600.0,0.00031414,120]
[337468859,1725678559133,150.0,0.00011173,2]
[337468860,1725678559156,150.0,0.00011173,2]
[337468861,1725678559179,150.0,0.00011173,2]
[337468862,1725678559202,70.07,0.00011173,2]
[337468899,1725678631587,-150.0,0.00012998,2]
[337468900,1725678631596,-300.0,0.00012998,2]
[337468901,1725678631605,-5773.53661166,0.00012999,2]
[337468903,1725678631617,-9227.87866621,0.00012999,2]
[337468905,1725678631627,-500.0,0.00012999,2]
[337468907,1725678631638,-500.0,0.00012999,2]
[337468909,1725678631649,-500.0,0.00012999,2]
[337468911,1725678631659,-500.0,0.00012999,2]
[337468913,1725678631669,-500.0,0.00012999,2]
[337468914,1725678631679,-500.0,0.00012999,2]
[337468915,1725678631690,-500.0,0.00012999,2]
[337468916,1725678631700,-500.0,0.00012999,2]
[337468917,1725678631709,-500.0,0.00012999,2]
[337468918,1725678631719,-316.20425477,0.00012999,2]
[337468919,1725678631728,-500.0,0.00012999,2]
[337468920,1725678631739,-500.0,0.00012999,2]
[337468921,1725678631751,-500.0,0.00012999,2]
[337468922,1725678631768,-500.0,0.00012999,2]
[337468923,1725678631777,-500.0,0.00012999,2]
[337468924,1725678631786,-527.5268361,0.00012999,2]
[337468925,1725678631795,-64071.35376593,0.00013,2]
[337468926,1725678631807,-295.4294,0.00013,2]
[337468927,1725678631819,-844.63596783,0.00013,2]
[337468928,1725678631868,-4190.38710936,0.00013,2]
[337468929,1725678631879,-790.15908962,0.00013,2]
[337468930,1725678631891,-1178.81576721,0.00013,2]
[337468931,1725678631903,-681.12857635,0.00013,2]
[337468932,1725678631915,-1033.09125361,0.00013,2]
[337468933,1725678631928,-176914.99907009,0.00013,2]
[337468934,1725678631937,-188.14,0.00013108,2]
[337468935,1725678631947,-332.95,0.00013116,2]
[337468936,1725678631957,-200.0,0.00013127,2]
[337468937,1725678631967,-500.0,0.00013127,2]
[337468938,1725678631977,-250.0,0.0001327,2]
[337468939,1725678631986,-150.0,0.0001329,2]
[337468940,1725678631998,-250.0,0.00013315,2]
[337468941,1725678632008,-291.77,0.00013401,2]
[337468942,1725678632017,-499.99,0.00013416,2]
[337468943,1725678632027,-520.07,0.00013437,2]
[337468944,1725678632036,-250.0,0.00013516,2]
[337468945,1725678632046,-158.8,0.00013556,2]
[337468946,1725678632056,-23900.0,0.00013595,2]
[337468947,1725678632066,-1707.77963324,0.00013599,2]
[337468949,1725678632076,-179.15,0.00013699,2]
[337468951,1725678632086,-1707.77963324,0.00013785,2]
[337468953,1725678632097,-708.23,0.00013932,2]
[337468955,1725678632106,-1707.77963324,0.00013971,2]
[337468956,1725678632116,-177.94,0.00013995,30]
[337468957,1725678632125,-2343.18375662,0.00014093,2]
[337468958,1725678632134,-175.0,0.00014103,2]
[337468959,1725678632144,-173.35,0.00014154,2]
[337468960,1725678632154,-1707.77963324,0.00014157,2]
[337468961,1725678632163,-420.0,0.00014254,2]
[337468962,1725678632174,-1707.77963324,0.00014342,2]
[337468963,1725678632185,-2343.18375662,0.00014374,2]
[337468964,1725678632195,-179.15,0.00014384,2]
[337468965,1725678632205,-1707.77963324,0.00014528,2]
[337468966,1725678632214,-2343.18375662,0.0001456,2]
[337468967,1725678632224,-7029.55126986,0.00014574,2]
[337468968,1725678632233,-70295.5126986,0.00014584,2]
[337468969,1725678632242,-1505.94724778,0.00014584,2]
[337468970,1725678632252,-151.17,0.00014584,2]
[337468971,1725678632261,-339.36122784,0.0001459,2]
[337468972,1725678632270,-223445.49239035,0.00014594,2]
[337468973,1725678632282,-297.04785907,0.00014594,2]
[337468974,1725678632294,-1003.2257048,0.00014594,2]